bitfinex/quotes_SOLUSD_20250527
["timestamp","ask_amount","ask_price","bid_price","bid_amount"]
[1748368129456,0.55834066,179.11,179.07,21.04048493]
[1748368129660,0.55834066,179.11,179.04,115.0]
[1748368129879,0.55834066,179.11,179.07,21.04048493]
[1748368130075,22.99461588,179.11,179.04,115.0]
[1748368130278,21.04048493,179.09,179.04,154.6]
[1748368130485,21.04048493,179.09,179.04,175.64048493]
[1748368130788,21.04048493,179.1,179.04,175.64048493]
[1748368131157,21.04048493,179.1,179.04,154.6]
[1748368131360,21.04048493,179.1,179.04,175.64048493]
[1748368132067,0.55837846,179.09,179.04,154.6]
[1748368132267,0.55837846,179.09,179.04,175.64048493]
[1748368132448,0.55837846,179.09,179.05,21.04048493]
[1748368138091,21.04048493,179.07,178.98,107.02697415]
[1748368138275,21.04048493,179.06,179.01,21.04048493]
[1748368138475,21.04048493,179.03,178.98,12.44]
[1748368138781,21.04048493,179.03,178.98,38.44]
[1748368139100,21.04048493,179.03,178.98,98.74048493]
[1748368139306,21.04048493,179.03,178.98,47.04048493]
[1748368140082,0.5585968,179.02,178.98,47.04048493]
[1748368140399,0.5585968,179.02,178.98,21.04048493]
[1748368140693,0.5585968,179.02,178.98,47.04048493]
[1748368140895,0.5585968,179.02,178.99,21.04048493]
[1748368141607,0.5585968,179.02,179.0,21.04048493]
[1748368141911,0.55856501,179.04,178.98,26.0]
[1748368142105,21.04048493,179.03,178.98,26.0]
[1748368142278,22.99538595,179.04,178.99,21.04048493]
[1748368142473,0.55856501,179.04,179.01,21.04048493]
[1748368142673,0.55856501,179.04,179.02,21.04048493]
[1748368143173,39.69013379,179.08,179.03,21.04048493]
[1748368143595,0.55831611,179.11,179.05,21.04048493]
[1748368143772,21.04048493,179.08,179.03,110.04048493]
[1748368143968,0.55844083,179.07,179.03,89.0]
[1748368144206,21.59892576,179.07,179.02,39.14]
[1748368144393,0.25,179.05,179.02,60.18048493]
[1748368144810,0.25,179.05,179.03,21.04048493]
[1748368146705,0.25,179.05,179.04,21.04048493]
[1748368147202,0.25,179.05,179.04,110.04048493]
[1748368147705,0.55838301,179.09,179.04,110.04048493]
[1748368148004,21.04048493,179.07,179.04,89.0]
[1748368148192,1.95432918,179.09,179.04,89.0]
[1748368148502,0.55838301,179.09,179.04,89.0]
[1748368148675,21.59886794,179.09,179.04,110.04048493]
[1748368149014,0.55838301,179.09,179.04,110.04048493]
[1748368149208,0.55838301,179.09,179.05,21.04048493]
[1748368149719,0.55838301,179.09,179.04,110.04048493]
[1748368152305,21.59886794,179.09,179.04,89.0]
[1748368152520,21.59886794,179.09,179.04,110.04048493]
[1748368153121,0.55838301,179.09,179.04,109.79048493]
[1748368153327,21.04048493,179.06,179.04,88.75]
[1748368153628,21.04048493,179.05,179.0,64.96]
[1748368154435,21.04048493,179.03,178.99,139.67]
[1748368154612,21.04048493,179.03,178.99,50.92]
[1748368154816,21.04048493,179.03,178.99,38.96]
[1748368155313,0.5585968,179.02,178.99,38.96]
[1748368157123,0.5585968,179.02,178.98,47.04048493]
[1748368157312,0.5585968,179.02,179.0,38.84]
[1748368157503,0.5585656,179.03,179.0,38.84]
[1748368158106,0.5585656,179.03,179.0,59.88048493]
[1748368158307,0.5585656,179.03,179.0,38.84]
[1748368159922,0.5585656,179.03,179.0,59.88048493]
[1748368160114,0.55850321,179.05,179.01,21.04048493]
[1748368160631,0.55850321,179.05,179.0,59.88048493]
[1748368160632,21.59898814,179.05,179.0,59.88048493]
[1748368161540,0.55850321,179.05,179.0,59.88048493]
[1748368161711,21.59898814,179.05,179.0,59.88048493]
[1748368162229,1.95422379,179.1,179.04,21.04048493]
[1748368162410,0.55834729,179.1,179.06,21.04048493]
[1748368162736,0.55832024,179.11,179.06,21.04048493]
[1748368162937,0.55826314,179.13,179.07,21.04048493]
[1748368163237,21.59874807,179.13,179.08,21.04048493]
[1748368163417,18.64964886,179.16,179.09,38.66]
[1748368163607,0.55819145,179.15,179.1,33.00048493]
[1748368163929,21.04048493,179.16,179.11,21.04048493]
[1748368164622,21.04048493,179.18,179.12,21.04048493]
[1748368164828,21.04048493,179.18,179.13,59.66048493]
[1748368165131,21.04048493,179.18,179.13,38.62]
[1748368165739,21.59861408,179.17,179.13,38.62]
[1748368167051,0.55812915,179.17,179.13,59.66048493]
[1748368167349,0.55807597,179.19,179.14,21.04048493]
[1748368167550,21.04048493,179.18,179.13,59.66048493]
[1748368167759,21.59858491,179.18,179.13,59.66048493]
[1748368167976,0.5580719,179.19,179.13,44.20248234]
[1748368168127,0.5580719,179.19,179.14,21.04048493]
[1748368168454,25.67422958,179.2,179.15,21.04048493]
[1748368169254,25.67422958,179.2,179.13,38.62]
[1748368169456,4.63374465,179.2,179.15,21.04048493]
[1748368169663,25.67422958,179.2,179.13,38.62]
[1748368170051,4.63374465,179.2,179.14,21.04048493]
[1748368170251,21.04048493,179.19,179.14,21.04048493]
[1748368171077,21.04048493,179.17,179.13,38.62]
[1748368171569,21.04048493,179.18,179.13,59.66048493]
[1748368171967,0.55812915,179.17,179.13,59.66048493]
[1748368172569,0.55812915,179.17,179.13,38.62]
[1748368172769,0.55812915,179.17,179.13,59.66048493]
[1748368173356,21.59861408,179.17,179.13,38.62]
[1748368173956,0.55812915,179.17,179.13,59.66048493]
[1748368174156,0.55806685,179.19,179.14,21.04048493]
[1748368174382,21.04048493,179.18,179.14,21.04048493]
[1748368174684,21.04048493,179.18,179.13,59.66048493]
[1748368176282,0.55812915,179.17,179.14,49.98]
[1748368176467,21.59855178,179.19,179.14,71.02048493]
[1748368176666,0.55806685,179.19,179.15,21.04048493]
[1748368176977,0.55806685,179.19,179.14,159.77048493]
[1748368177179,21.59855178,179.19,179.14,159.77048493]
[1748368177373,0.55806685,179.19,179.14,159.77048493]
[1748368177674,21.59855178,179.19,179.14,159.77048493]
[1748368178172,21.59855178,179.19,179.14,138.73]
[1748368178386,21.59855178,179.19,179.14,159.77048493]
[1748368178595,4.0757025,179.2,179.17,26.0]
[1748368178797,4.0757025,179.2,179.19,21.04048493]
[1748368179863,25.67423553,179.2,179.16,26.0]
[1748368180052,4.6337506,179.2,179.19,38.38]
[1748368181231,25.67423553,179.2,179.19,38.38]
[1748368182161,4.6337506,179.2,179.19,38.38]
[1748368182361,25.67423553,179.2,179.19,38.38]
[1748368183851,27.06932481,179.2,179.18,11.52]
[1748368184175,21.04048493,179.19,179.18,11.52]
[1748368184569,21.04048493,179.19,179.18,49.82]
[1748368184773,21.59855178,179.19,179.18,49.82]
[1748368185205,21.59855178,179.19,179.18,11.52]
[1748368185411,22.99371892,179.19,179.18,38.28]
[1748368185705,22.99371892,179.19,179.17,38.28]
[1748368186005,21.04048493,179.18,179.17,38.28]
[1748368186390,1.95323399,179.19,179.17,38.28]
[1748368186719,22.99371892,179.19,179.17,38.28]
[1748368187073,1.95323399,179.19,179.17,38.28]
[1748368187277,22.99371892,179.19,179.17,38.28]
[1748368188600,21.59858293,179.18,179.17,38.28]
[1748368190111,0.558098,179.18,179.17,38.28]
[1748368190781,21.59858293,179.18,179.17,38.28]
[1748368191222,0.558098,179.18,179.17,38.28]
[1748368192309,0.55807368,179.19,179.17,38.28]
[1748368192913,21.04048493,179.18,179.17,38.28]
[1748368193926,21.59855861,179.19,179.17,38.28]
[1748368195601,21.04048493,179.18,179.17,38.28]
[1748368196541,21.59858293,179.18,179.17,38.28]
[1748368196909,21.59858293,179.18,179.16,11.52]
[1748368197224,21.04048493,179.17,179.16,11.52]
[1748368197430,18.64964886,179.12,178.99,21.04048493]
[1748368197732,26.0,179.13,178.99,21.04048493]
[1748368197733,21.04048493,179.04,178.99,59.08048493]
[1748368197942,21.04048493,179.04,179.0,26.0]
[1748368198230,21.04048493,179.04,178.99,59.08048493]
[1748368198436,18.64964886,179.09,179.0,26.0]
[1748368198437,1.95443376,179.08,179.0,26.0]
[1748368198600,21.04048493,179.04,179.0,26.0]
[1748368199122,21.04048493,179.04,178.99,59.08048493]
[1748368199301,1.95443376,179.08,178.99,38.04]
[1748368199503,0.55840964,179.08,179.0,26.0]
[1748368199823,21.04048493,179.06,179.0,26.0]
[1748368199996,21.04048493,179.06,179.01,21.04048493]
[1748368200312,0.55840964,179.08,179.0,26.0]
[1748368200313,0.55840964,179.08,179.02,21.04048493]
[1748368200499,21.04048493,179.07,179.03,38.0]
[1748368200709,21.04048493,179.09,179.04,21.04048493]
[1748368200905,21.04048493,179.11,179.05,21.04048493]
[1748368201201,21.04048493,179.12,179.07,21.04048493]
[1748368201411,21.04048493,179.12,179.08,38.0]
[1748368202339,21.59879206,179.12,179.08,38.0]
[1748368202496,21.04048493,179.1,179.08,38.0]
[1748368204528,0.55837846,179.09,179.08,38.0]
[1748368205419,21.59886339,179.09,179.06,37.9]
[1748368205635,21.59886339,179.09,179.04,26.0]
[1748368205937,21.59886339,179.09,179.04,63.9]
[1748368207236,21.59886339,179.09,179.04,84.94048493]
[1748368207816,0.55837846,179.09,179.04,84.94048493]
[1748368208336,21.59886339,179.09,179.04,84.94048493]
[1748368208545,1.95432463,179.09,179.02,100.2]
[1748368208705,0.5585344,179.04,179.02,100.2]
[1748368208906,0.5585344,179.04,179.02,11.2]
[1748368209711,0.55844083,179.07,179.02,11.2]
[1748368209912,21.59892576,179.07,179.02,11.2]
[1748368210308,21.04048493,179.06,179.02,11.2]
[1748368210525,21.04048493,179.03,178.99,37.98]
[1748368210839,21.04048493,179.04,178.99,59.02048493]
[1748368212138,0.5585656,179.03,178.99,59.02048493]
[1748368212435,0.5585656,179.03,178.99,59.00048493]
[1748368212632,21.59905053,179.03,178.97,26.0]
[1748368212818,21.04048493,179.02,178.96,11.22]
[1748368213134,21.04048493,179.02,178.97,58.98048493]
[1748368213715,21.04048493,179.02,178.97,21.04048493]
[1748368214337,0.558628,179.01,178.97,21.04048493]
[1748368215622,0.55850321,179.05,179.0,21.04048493]
[1748368215930,0.55850321,179.05,179.02,21.04048493]
[1748368216255,0.55847202,179.06,179.02,21.04048493]
[1748368216736,0.55847202,179.06,179.03,21.04048493]
[1748368217114,0.55840964,179.08,179.04,21.04048493]
[1748368217723,0.55838271,179.09,179.06,21.04048493]
[1748368217929,0.55838271,179.09,179.01,84.88048493]
[1748368217930,0.55831611,179.11,179.08,21.04048493]
[1748368218314,0.55828494,179.12,179.08,21.04048493]
[1748368218716,0.55828494,179.12,179.07,21.04048493]
[1748368218915,0.55828494,179.12,179.08,21.04048493]
[1748368219433,0.55828494,179.12,179.09,21.04048493]
[1748368219635,0.55828494,179.12,179.06,37.82]
[1748368219636,0.55828494,179.12,179.1,21.04048493]
[1748368219847,0.55828494,179.12,179.09,21.04048493]
[1748368221345,0.55828494,179.12,179.1,21.04048493]
[1748368221519,0.55822261,179.14,179.1,21.04048493]
[1748368221720,0.55822261,179.14,179.06,37.82]
[1748368221923,0.55822261,179.14,179.1,21.04048493]
[1748368222221,21.59870754,179.14,179.09,21.04048493]
[1748368222631,1.95371283,179.15,179.09,21.04048493]
[1748368222832,21.04048493,179.14,179.09,21.04048493]
[1748368223556,21.04048493,179.12,179.06,37.82]
[1748368223756,21.04048493,179.11,179.06,58.86048493]
[1748368223963,21.04048493,179.11,179.06,37.82]
[1748368224250,21.04048493,179.11,179.06,58.86048493]
[1748368224637,0.55834729,179.1,179.07,21.04048493]
[1748368226862,0.55831611,179.11,179.08,21.04048493]
[1748368227069,0.55831611,179.11,179.09,21.04048493]
[1748368227949,21.59867638,179.15,179.09,21.04048493]
[1748368228122,22.99415502,179.15,179.09,21.04048493]
[1748368229670,1.39547864,179.15,179.09,21.04048493]
[1748368229948,21.04048493,179.14,179.09,21.04048493]
[1748368230650,1.39547864,179.15,179.09,21.04048493]
[1748368230842,21.04048493,179.14,179.09,21.04048493]
[1748368231962,21.04048493,179.14,179.1,21.04048493]
[1748368231963,0.55822261,179.14,179.1,21.04048493]
[1748368232540,0.55822261,179.14,179.12,21.04048493]
[1748368232737,0.55822261,179.14,179.11,21.04048493]
[1748368233646,21.59867638,179.15,179.1,58.86048493]
[1748368235167,22.99415502,179.15,179.1,37.82]
[1748368235474,21.04048493,179.14,179.1,37.82]
[1748368235870,0.55825378,179.13,179.1,37.82]
[1748368236576,0.55825378,179.13,179.1,58.86048493]
[1748368237452,0.55825378,179.13,179.1,37.82]
[1748368237649,0.55825378,179.13,178.98,28.07764073]
[1748368237650,21.04048493,179.11,179.01,89.0]
[1748368237878,21.04048493,179.09,179.04,58.86048493]
[1748368238049,0.55840964,179.08,179.04,58.86048493]
[1748368238379,21.04048493,179.05,178.97,11.04]
[1748368238551,21.04048493,179.04,178.99,21.04048493]
[1748368238755,21.04048493,179.03,178.97,11.04]
[1748368238966,21.04048493,179.03,178.98,58.86048493]
[1748368239775,21.04048493,179.03,178.98,37.82]
[1748368239983,0.5585968,179.02,178.98,37.82]
[1748368240551,1.95508881,179.02,178.97,11.04]
[1748368240752,21.04048493,178.99,178.97,11.04]
[1748368240974,21.04048493,179.0,178.97,11.04]
[1748368241176,21.04048493,179.0,178.91,11.04]
[1748368241476,1.95508881,179.02,178.95,21.04048493]
[1748368241660,21.04048493,179.0,178.95,58.86048493]
[1748368241970,21.04048493,179.01,178.95,58.86048493]
[1748368242178,1.95530725,179.0,178.95,58.86048493]
[1748368242561,1.95530725,179.0,178.96,21.04048493]
[1748368242765,0.55865921,179.0,178.98,21.04048493]
[1748368243270,1.95530725,179.0,178.96,21.04048493]
[1748368243573,1.95530725,179.0,178.95,37.82]
[1748368243782,1.95530725,179.0,178.97,21.04048493]
[1748368244683,1.39664804,179.0,178.97,21.04048493]
[1748368244882,1.39664804,179.0,178.95,37.82]
[1748368245060,1.39664804,179.0,178.97,21.04048493]
[1748368245883,1.39664804,179.0,178.95,37.82]
[1748368246086,1.39664804,179.0,178.96,21.04048493]
[1748368246576,1.39664804,179.0,178.97,21.04048493]
[1748368246758,1.39664804,179.0,178.95,37.82]
[1748368246954,1.39664804,179.0,178.97,21.04048493]
[1748368247168,1.39664804,179.0,178.98,21.04048493]
[1748368247368,1.39664804,179.0,178.97,21.04048493]
[1748368250293,1.39664804,179.0,178.95,37.82]
[1748368250585,1.39664804,179.0,178.97,21.04048493]
[1748368250761,1.95530725,179.0,178.97,21.04048493]
[1748368250971,1.95530725,179.0,178.95,63.82]
[1748368251179,1.95530725,179.0,178.97,21.04048493]
[1748368251577,1.95530725,179.0,178.95,63.82]
[1748368251778,1.95530725,179.0,178.98,21.04048493]
[1748368251988,1.95530725,179.0,178.97,21.04048493]
[1748368252668,1.95530725,179.0,178.95,63.82]
[1748368252870,1.95530725,179.0,178.96,21.04048493]
[1748368253768,1.95530725,179.0,178.97,21.04048493]
[1748368255374,21.04048493,179.01,178.97,21.04048493]
[1748368255375,18.64964886,179.02,178.97,21.04048493]
[1748368255682,21.04048493,179.01,178.97,21.04048493]
[1748368257167,21.04048493,179.01,178.95,63.82]
[1748368257476,1.95465207,179.06,179.0,21.04048493]
[1748368257790,22.995137,179.06,179.02,21.04048493]
[1748368258379,22.995137,179.06,179.01,21.04048493]
[1748368258593,21.04048493,179.03,178.98,84.86048493]
[1748368259375,21.04048493,179.03,178.98,58.86048493]
[1748368260097,21.04048493,179.02,178.98,37.82]
[1748368260297,21.04048493,179.02,178.98,58.86048493]
[1748368260605,21.59911293,179.01,178.98,37.82]
[1748368261112,22.99568295,179.01,178.97,37.82]
[1748368261897,22.99568295,179.01,178.94,37.04]
[1748368262207,21.04048493,179.0,178.95,37.82]
[1748368262805,2.7923601,179.06,178.95,37.82]
[1748368262806,22.99590142,178.99,178.95,37.82]
[1748368263109,1.95541649,178.99,178.95,58.86048493]
[1748368263293,1.95541649,178.99,178.95,37.82]
[1748368263484,1.95541649,178.99,178.95,58.86048493]
[1748368263797,0.55869042,178.99,178.96,21.04048493]
[1748368264699,21.04048493,179.01,178.96,21.04048493]
[1748368264700,0.55865921,179.0,178.96,21.04048493]
[1748368264995,0.55865921,179.0,178.95,37.82]
[1748368265298,0.55865921,179.0,178.96,21.04048493]
[1748368265500,0.55865921,179.0,178.97,21.04048493]
[1748368265687,0.55865921,179.0,178.95,37.82]
[1748368265887,0.55865921,179.0,178.97,21.04048493]
[1748368266399,0.55865921,179.0,178.98,21.04048493]
[1748368266896,22.99561903,179.02,178.95,37.82]
[1748368267198,22.99561903,179.02,178.97,21.04048493]
[1748368267624,21.04048493,179.01,178.96,21.04048493]
[1748368267773,21.04048493,179.01,178.79,10.0]
[1748368267774,18.64964886,179.01,178.79,10.0]
[1748368267971,21.04048493,178.94,178.85,48.84]
[1748368268191,21.04048493,178.94,178.85,11.04]
[1748368268394,21.04048493,178.95,178.87,26.0]
[1748368268605,18.64964886,179.01,178.89,21.04048493]
[1748368268906,21.04048493,178.94,178.89,37.8]
[1748368269411,21.04048493,178.92,178.85,11.04]
[1748368269598,18.64964886,178.96,178.85,48.84]
[1748368269907,18.64964886,178.96,178.85,74.84]
[1748368270075,21.04048493,178.91,178.87,21.04048493]
[1748368270277,18.64964886,178.96,178.85,37.04]
[1748368270514,21.04048493,178.92,178.85,37.04]
[1748368270822,21.04048493,178.91,178.85,37.04]
[1748368270980,0.55897149,178.9,178.87,21.04048493]
[1748368271323,18.64964886,178.87,178.7,4.36748402]
[1748368271540,21.04048493,178.78,178.73,21.04048493]
[1748368272044,21.04048493,178.78,178.72,26.0]
[1748368272269,21.04048493,178.77,178.72,47.04048493]
[1748368272624,0.55940926,178.76,178.73,21.04048493]
[1748368272823,21.04048493,178.83,178.72,26.0]
[1748368272824,0.55931539,178.79,178.72,26.0]
[1748368273027,21.04048493,178.74,178.62,13.95393296]
[1748368273226,21.04048493,178.72,178.62,11.04]
[1748368273551,21.04048493,178.71,178.66,21.04048493]
[1748368273858,21.04048493,178.72,178.62,11.04]
[1748368274153,21.04048493,178.72,178.65,26.0]
[1748368274447,21.04048493,178.71,178.66,21.04048493]
[1748368274620,0.55950316,178.73,178.66,21.04048493]
[1748368274825,21.04048493,178.71,178.66,21.04048493]
[1748368275260,21.04048493,178.7,178.65,26.0]
[1748368275481,21.04048493,178.71,178.66,21.04048493]
[1748368275639,21.04048493,178.71,178.65,26.0]
[1748368275848,21.04048493,178.71,178.66,26.0]
[1748368276149,34.42491512,178.71,178.62,11.04]
[1748368276375,34.42491512,178.69,178.64,34.42491512]
[1748368276548,34.42491512,178.7,178.65,34.42491512]
[1748368276750,34.98450353,178.71,178.66,34.42491512]
[1748368277339,34.98450353,178.71,178.63,31.59816374]
[1748368277551,34.42491512,178.7,178.65,34.42491512]
[1748368277958,0.55958841,178.71,178.65,34.42491512]
[1748368278155,34.42491512,178.7,178.63,5.59806828]
[1748368278345,0.55958841,178.71,178.63,5.59806828]
[1748368278550,34.42491512,178.7,178.65,40.02243041]
[1748368278777,18.64964886,178.72,178.66,34.42491512]
[1748368279067,18.64964886,178.72,178.62,26.0]
[1748368279068,18.64964886,178.72,178.63,5.5981638]
[1748368279279,34.42491512,178.68,178.62,31.59845133]
[1748368279446,34.42491512,178.69,178.62,31.59845133]
[1748368279776,34.42491512,178.64,178.59,34.42491512]
[1748368280341,34.42491512,178.63,178.58,60.42491512]
[1748368280539,34.98470279,178.64,178.59,34.42491512]
[1748368280864,34.42491512,178.64,178.59,34.42491512]
[1748368281035,34.42491512,178.67,178.62,34.42491512]
[1748368281869,19.20921463,178.71,178.64,34.42491512]
[1748368282055,34.42491512,178.69,178.64,34.42491512]
[1748368282257,34.42491512,178.68,178.63,34.42491512]
[1748368282775,34.98460617,178.67,178.6,5.59882347]
[1748368282949,34.98460617,178.67,178.62,34.42491512]
[1748368283275,0.55969105,178.67,178.6,31.59882347]
[1748368283441,34.42491512,178.66,178.6,26.0]
[1748368283639,34.42491512,178.66,178.61,34.42491512]
[1748368284269,0.55969105,178.67,178.61,34.42491512]
[1748368284567,34.98460617,178.67,178.62,34.42491512]
[1748368284753,34.42491512,178.67,178.62,34.42491512]
[1748368285364,34.42491512,178.67,178.6,31.5990952]
[1748368285539,34.42491512,178.67,178.62,34.42491512]
[1748368285941,34.42491512,178.67,178.6,31.5990952]
[1748368286140,34.42491512,178.67,178.62,34.42491512]
[1748368286141,34.98460935,178.67,178.62,34.42491512]
[1748368286451,34.42491512,178.66,178.6,31.5990952]
[1748368286653,34.42491512,178.66,178.61,34.42491512]
[1748368286862,34.42491512,178.66,178.6,31.5990952]
[1748368287061,34.42491512,178.66,178.61,34.42491512]
[1748368287261,34.42491512,178.66,178.6,31.5990952]
[1748368287546,34.42491512,178.64,178.56,11.04]
[1748368287757,34.42491512,178.63,178.58,34.42491512]
[1748368287953,34.42491512,178.63,178.58,60.42491512]
[1748368288453,34.42491512,178.65,178.59,34.42491512]
[1748368288860,20.60857071,178.67,178.58,26.0]
[1748368289063,34.42491512,178.65,178.59,34.42491512]
[1748368289678,1.95892185,178.67,178.6,34.42491512]
[1748368289880,34.42491512,178.65,178.6,34.42491512]
[1748368290076,18.64964886,178.66,178.6,34.42491512]
[1748368290282,0.55978504,178.64,178.58,31.59962897]
[1748368290463,0.55978504,178.64,178.6,34.42491512]
[1748368290972,34.98470016,178.64,178.59,34.42491512]
[1748368291165,34.42491512,178.63,178.58,60.42491512]
[1748368291781,0.55978504,178.64,178.54,26.0]
[1748368291954,34.42491512,178.6,178.55,34.42491512]
[1748368292155,34.42491512,178.57,178.5,16.78215538]
[1748368292456,34.42491512,178.57,178.51,34.42491512]
[1748368292661,34.42491512,178.57,178.52,26.0]
[1748368293074,34.42491512,178.57,178.52,34.42491512]
[1748368293280,1.95946702,178.62,178.52,34.42491512]
[1748368293467,1.95946702,178.62,178.5,26.0]
[1748368293468,34.42491512,178.58,178.53,34.42491512]
[1748368293671,34.42491512,178.57,178.5,31.60215684]
[1748368293970,34.42491512,178.57,178.52,34.42491512]
[1748368294570,1.95946702,178.62,178.52,34.42491512]
[1748368294765,34.98492988,178.57,178.52,34.42491512]
[1748368295059,18.64964886,178.61,178.54,34.42491512]
[1748368295259,19.20952792,178.61,178.55,34.42491512]
[1748368295463,34.42491512,178.6,178.52,5.60159728]
[1748368295679,34.42491512,178.59,178.54,34.42491512]
[1748368296362,34.42491512,178.62,178.57,34.42491512]
[1748368296890,11.18,178.66,178.61,34.42491512]
[1748368297271,34.42491512,178.65,178.59,34.42491512]
[1748368297474,34.42491512,178.61,178.57,26.0]
[1748368297681,34.42491512,178.6,178.55,60.42491512]
[1748368298457,0.55993924,178.6,178.55,60.42491512]
[1748368298774,0.55993924,178.6,178.55,26.0]
[1748368298974,0.55993924,178.6,178.56,34.42491512]
[1748368299182,0.55981638,178.63,178.59,34.42491512]
[1748368300077,0.55981638,178.63,178.59,21.13823095]
[1748368300280,21.13823095,178.65,178.6,21.13823095]
[1748368300471,0.5597537,178.65,178.61,21.13823095]
[1748368302074,0.5597537,178.65,178.61,34.44253788]
[1748368302275,11.73972583,178.66,178.59,38.04]
[1748368302584,46.18226371,178.66,178.61,34.44253788]
[1748368304078,34.44253788,178.65,178.6,34.44253788]
[1748368304481,0.5597537,178.65,178.61,34.44253788]
[1748368304896,34.44253788,178.63,178.58,26.0]
[1748368305097,34.44253788,178.62,178.58,26.0]
[1748368305279,34.44253788,178.63,178.58,34.44253788]
[1748368305486,34.44253788,178.64,178.59,34.44253788]
[1748368305892,34.44253788,178.64,178.56,26.0]
[1748368306080,34.44253788,178.64,178.59,34.44253788]
[1748368307168,0.55981638,178.63,178.59,34.44253788]
[1748368307791,0.55981638,178.63,178.56,31.60031873]
[1748368307792,0.5597537,178.65,178.6,34.44253788]
[1748368307979,35.00229158,178.65,178.6,34.44253788]
[1748368308186,34.44253788,178.64,178.59,34.44253788]
[1748368308480,0.5597537,178.65,178.58,34.44253788]
[1748368308481,34.44253788,178.63,178.58,34.44253788]
[1748368308677,34.44253788,178.64,178.59,34.44253788]
[1748368308884,1.95913797,178.65,178.59,34.44253788]
[1748368309185,34.44253788,178.64,178.59,34.44253788]
[1748368309379,0.55981638,178.63,178.59,34.44253788]
[1748368309711,0.55981638,178.63,178.6,34.44253788]
[1748368309999,0.55981638,178.63,178.59,34.44253788]
[1748368310772,37.23986508,178.75,178.61,34.44253788]
[1748368310978,18.64964886,178.71,178.65,34.44253788]
[1748368311201,34.44253788,178.7,178.65,34.44253788]
[1748368311427,0.5596284,178.69,178.65,34.44253788]
[1748368311593,0.5596284,178.69,178.62,37.88]
[1748368311795,35.00216628,178.69,178.64,34.44253788]
[1748368312483,0.5596284,178.69,178.64,34.44253788]
[1748368312906,0.5596284,178.69,178.6,31.59909082]
[1748368313097,35.00216628,178.69,178.64,34.44253788]
[1748368313303,0.5596284,178.69,178.65,34.44253788]
[1748368313512,36.40112769,178.7,178.64,34.44253788]
[1748368313822,34.44253788,178.69,178.64,34.44253788]
[1748368315222,1.95858981,178.7,178.64,34.44253788]
[1748368315719,36.40112769,178.7,178.64,34.44253788]
[1748368315902,36.40112769,178.7,178.62,37.88]
[1748368316115,36.40112769,178.7,178.64,34.44253788]
[1748368316528,1.95858981,178.7,178.64,34.44253788]
[1748368316714,1.95858981,178.7,178.65,34.44253788]
[1748368316899,36.40112769,178.7,178.65,34.44253788]
[1748368318621,0.55959709,178.7,178.67,34.44253788]
[1748368319125,0.55950316,178.73,178.69,34.44253788]
[1748368319315,1.95826106,178.73,178.69,34.44253788]
[1748368319522,36.40079894,178.73,178.68,34.44253788]
[1748368319915,34.44253788,178.7,178.64,37.88]
[1748368320112,34.44253788,178.71,178.66,34.44253788]
[1748368321025,0.55959709,178.7,178.66,34.44253788]
[1748368321236,1.95858981,178.7,178.67,34.44253788]
[1748368321527,0.55959709,178.7,178.68,34.44253788]
[1748368321824,0.55953446,178.72,178.69,34.44253788]
[1748368322016,11.06,178.8,178.71,21.10360588]
[1748368322217,11.06,178.8,178.76,21.10360588]
[1748368322420,18.64964886,178.79,178.76,21.10360588]
[1748368322634,20.60728904,178.79,178.76,21.10360588]
[1748368322807,20.60728904,178.79,178.75,21.10360588]
[1748368323213,1.95764018,178.79,178.76,21.10360588]
[1748368323517,0.55931539,178.79,178.78,21.10360588]
[1748368323718,0.55925283,178.81,178.78,21.10360588]
[1748368323912,0.55925283,178.81,178.8,21.10360588]
[1748368324912,20.60663897,178.85,178.8,21.10360588]
[1748368325111,1.95699011,178.85,178.82,21.10360588]
[1748368325313,1.95699011,178.85,178.74,37.88]
[1748368325511,21.10360588,178.82,178.73,115.0]
[1748368325729,21.10360588,178.79,178.74,21.10360588]
[1748368325911,18.64964886,178.84,178.76,21.10360588]
[1748368326117,21.10360588,178.81,178.73,63.88]
[1748368326428,21.10360588,178.81,178.75,21.10360588]
[1748368326815,21.10360588,178.8,178.75,21.10360588]
[1748368327026,21.10360588,178.81,178.75,21.10360588]
[1748368327521,18.64964886,178.84,178.75,21.10360588]
[1748368327522,1.9574944,178.8,178.75,21.10360588]
[1748368327913,1.9574944,178.8,178.73,63.88]
[1748368328111,21.10360588,178.77,178.73,63.88]
[1748368328934,0.55940926,178.76,178.73,63.88]
[1748368329130,0.55940926,178.76,178.73,152.88]
[1748368331313,21.10360588,178.74,178.7,100.06]
[1748368331515,21.10360588,178.74,178.71,37.86]